[Event "*** Titled Tuesday Blitz"]
[Site "Chess.com"]
[Date "2020.01.07"]
[Round "6"]
[White "AminMolaei"]
[Black "MathiasWomacka"]
[Result "1/2-1/2"]
[WhiteElo "2574"]
[BlackElo "2369"]
[TimeControl "180+2"]
[EndTime "14:25:00 PST"]
[Termination "Game drawn by repetition"]

1. d4 {[%clk 0:03:01.9]} 1... Nf6 {[%clk 0:03:00.4]} 2. c4 {[%clk 0:03:02.8]}
2... e6 {[%clk 0:03:01.5]} 3. Nc3 {[%clk 0:03:03.9]} 3... Bb4 {[%clk 0:03:02.3]}
4. Qc2 {[%clk 0:03:05]} 4... c5 {[%clk 0:03:02.7]} 5. dxc5 {[%clk 0:03:05.7]}
5... O-O {[%clk 0:03:02.8]} 6. a3 {[%clk 0:03:06.7]} 6... Bxc5 {[%clk
0:03:03.9]} 7. Bf4 {[%clk 0:03:07.8]} 7... b6 {[%clk 0:02:44.6]} 8. e3 {[%clk
0:03:03.9]} 8... Bb7 {[%clk 0:02:45.3]} 9. Nf3 {[%clk 0:03:00.2]} 9... Nc6
{[%clk 0:02:30.1]} 10. Rd1 {[%clk 0:03:01.2]} 10... Be7 {[%clk 0:02:30.9]} 11.
Be2 {[%clk 0:03:00.7]} 11... Rc8 {[%clk 0:02:30.9]} 12. O-O {[%clk 0:03:01.2]}
12... Na5 {[%clk 0:02:30.3]} 13. Ne5 {[%clk 0:02:53]} 13... d6 {[%clk
0:02:29.9]} 14. b4 {[%clk 0:02:53.4]} 14... Qc7 {[%clk 0:02:22.1]} 15. bxa5
{[%clk 0:02:19.9]} 15... dxe5 {[%clk 0:02:22]} 16. axb6 {[%clk 0:02:20.6]} 16...
axb6 {[%clk 0:02:23.5]} 17. Bg3 {[%clk 0:02:17.8]} 17... Ba6 {[%clk 0:02:16.4]}
18. Qb2 {[%clk 0:01:51.9]} 18... Bxc4 {[%clk 0:02:11.4]} 19. Rc1 {[%clk
0:01:51.4]} 19... Bxe2 {[%clk 0:02:10.2]} 20. Nxe2 {[%clk 0:01:53.3]} 20... Qa7
{[%clk 0:02:09.2]} 21. Ra1 {[%clk 0:01:48.6]} 21... e4 {[%clk 0:02:04.5]} 22.
Rfb1 {[%clk 0:01:49.2]} 22... Nd5 {[%clk 0:01:58.8]} 23. Ra2 {[%clk 0:01:42.4]}
23... Rc4 {[%clk 0:01:40]} 24. h3 {[%clk 0:01:25.8]} 24... Rfc8 {[%clk
0:01:39.7]} 25. Qb3 {[%clk 0:01:18.7]} 25... h6 {[%clk 0:01:34.3]} 26. Kh2
{[%clk 0:01:06.7]} 26... f5 {[%clk 0:01:22.8]} 27. Re1 {[%clk 0:00:56.6]} 27...
Kh7 {[%clk 0:01:23]} 28. Nd4 {[%clk 0:00:48.8]} 28... Qd7 {[%clk 0:01:10.6]} 29.
a4 {[%clk 0:00:49.2]} 29... Nc3 {[%clk 0:01:06.2]} 30. Raa1 {[%clk 0:00:20.8]}
30... Nxa4 {[%clk 0:00:54.7]} 31. Nxe6 {[%clk 0:00:17.3]} 31... Qxe6 {[%clk
0:00:25.5]} 32. Rxa4 {[%clk 0:00:17.8]} 32... R4c6 {[%clk 0:00:23.6]} 33. Qb5
{[%clk 0:00:18.1]} 33... Bd6 {[%clk 0:00:20.9]} 34. Ra7 {[%clk 0:00:16.9]} 34...
Bxg3+ {[%clk 0:00:21.3]} 35. fxg3 {[%clk 0:00:18.8]} 35... R8c7 {[%clk
0:00:18.4]} 36. Rea1 {[%clk 0:00:17.9]} 36... Rxa7 {[%clk 0:00:04.7]} 37. Rxa7
{[%clk 0:00:18.5]} 37... Rc2 {[%clk 0:00:03.3]} 38. Qb4 {[%clk 0:00:16.2]} 38...
Qc4 {[%clk 0:00:02.9]} 39. Qf8 {[%clk 0:00:05.8]} 39... Rxg2+ {[%clk 0:00:03.2]}
40. Kxg2 {[%clk 0:00:06.2]} 40... Qe2+ {[%clk 0:00:05.1]} 41. Kg1 {[%clk
0:00:07.5]} 41... Qe1+ {[%clk 0:00:06.4]} 42. Kh2 {[%clk 0:00:08.5]} 42... Qe2+
{[%clk 0:00:07.6]} 43. Kh1 {[%clk 0:00:09.7]} 43... Qe1+ {[%clk 0:00:09.5]} 44.
Kh2 {[%clk 0:00:11.1]} 44... Qe2+ {[%clk 0:00:04.5]} 45. Kg1 {[%clk 0:00:11.6]}
45... Qe1+ {[%clk 0:00:06.4]} 46. Kg2 {[%clk 0:00:11.6]} 46... Qe2+ {[%clk
0:00:08.3]} 47. Kh1 {[%clk 0:00:12.8]} 47... Qe1+ {[%clk 0:00:09.6]} 48. Kh2
{[%clk 0:00:05.1]} 1/2-1/2

[Event "*** Titled Tuesday Blitz"]
[Site "Chess.com"]
[Date "2020.01.07"]
[Round "6"]
[White "Yaacovn"]
[Black "Vugar_Manafov"]
[Result "1-0"]
[WhiteElo "2812"]
[BlackElo "2603"]
[TimeControl "180+2"]
[EndTime "14:25:04 PST"]
[Termination "Yaacovn won by resignation"]

1. d4 {[%clk 0:03:01.9]} 1... Nf6 {[%clk 0:02:59.5]} 2. Nf3 {[%clk 0:03:02.4]}
2... e6 {[%clk 0:02:59.9]} 3. e3 {[%clk 0:03:03]} 3... c5 {[%clk 0:02:59.7]} 4.
c3 {[%clk 0:03:03.6]} 4... b6 {[%clk 0:03:00.5]} 5. Bd3 {[%clk 0:03:03.7]} 5...
Bb7 {[%clk 0:03:01.5]} 6. O-O {[%clk 0:03:03.8]} 6... d6 {[%clk 0:03:02.3]} 7.
Nbd2 {[%clk 0:03:03.6]} 7... Nc6 {[%clk 0:03:02.2]} 8. Qe2 {[%clk 0:03:04.2]}
8... Be7 {[%clk 0:03:02.9]} 9. a3 {[%clk 0:03:04.7]} 9... a5 {[%clk 0:03:02.8]}
10. e4 {[%clk 0:03:05.4]} 10... e5 {[%clk 0:03:01.5]} 11. dxe5 {[%clk
0:03:05.9]} 11... dxe5 {[%clk 0:03:01.7]} 12. Nc4 {[%clk 0:03:06.2]} 12... Qc7
{[%clk 0:03:01.1]} 13. a4 {[%clk 0:03:07.4]} 13... O-O {[%clk 0:03:00.7]} 14.
Bg5 {[%clk 0:03:07.9]} 14... h6 {[%clk 0:02:59.6]} 15. Bxf6 {[%clk 0:03:01.9]}
15... Bxf6 {[%clk 0:03:01.5]} 16. Rad1 {[%clk 0:03:03.2]} 16... Rad8 {[%clk
0:03:00]} 17. Ne3 {[%clk 0:03:04.3]} 17... Na7 {[%clk 0:02:47.5]} 18. h3 {[%clk
0:03:00.2]} 18... Nc8 {[%clk 0:02:41.1]} 19. Ng4 {[%clk 0:02:59.2]} 19... Qe7
{[%clk 0:02:33.8]} 20. Ba6 {[%clk 0:02:59.6]} 20... Bc6 {[%clk 0:02:26.3]} 21.
Bb5 {[%clk 0:02:57.5]} 21... Bb7 {[%clk 0:02:26.4]} 22. Nd2 {[%clk 0:02:19.1]}
22... Nd6 {[%clk 0:02:23.7]} 23. Bd3 {[%clk 0:02:19.3]} 23... Kh7 {[%clk
0:02:13.2]} 24. Nc4 {[%clk 0:02:18.2]} 24... Nxc4 {[%clk 0:02:11.8]} 25. Bxc4
{[%clk 0:02:19.4]} 25... Bg5 {[%clk 0:02:06.2]} 26. Bd5 {[%clk 0:02:16.8]} 26...
Bxd5 {[%clk 0:02:05.8]} 27. Rxd5 {[%clk 0:02:14.7]} 27... Rxd5 {[%clk
0:02:05.8]} 28. exd5 {[%clk 0:02:16.6]} 28... f5 {[%clk 0:01:45.1]} 29. Ne3
{[%clk 0:01:18.5]} 29... Bxe3 {[%clk 0:01:40.3]} 30. Qxe3 {[%clk 0:01:16.3]}
30... Qd6 {[%clk 0:01:33.6]} 31. c4 {[%clk 0:01:13.7]} 31... g5 {[%clk
0:01:12.2]} 32. Re1 {[%clk 0:01:11.5]} 32... Re8 {[%clk 0:01:12.5]} 33. g4
{[%clk 0:01:03.6]} 33... fxg4 {[%clk 0:00:27.8]} 34. Qe4+ {[%clk 0:01:03.9]}
34... Kg7 {[%clk 0:00:24.9]} 35. hxg4 {[%clk 0:01:04.9]} 35... Qf6 {[%clk
0:00:26.3]} 36. Kg2 {[%clk 0:01:03]} 36... Kg8 {[%clk 0:00:22.4]} 37. Re3 {[%clk
0:01:02.6]} 37... Kg7 {[%clk 0:00:05.5]} 38. Rf3 {[%clk 0:00:59.2]} 38... Qg6
{[%clk 0:00:06.9]} 39. Rf5 {[%clk 0:00:57.9]} 39... Re7 {[%clk 0:00:08]} 40. f3
{[%clk 0:00:51.5]} 40... Re8 {[%clk 0:00:05.6]} 41. Rxe5 {[%clk 0:00:47]} 41...
Rxe5 {[%clk 0:00:02.2]} 42. Qxe5+ {[%clk 0:00:47.7]} 42... Kf8 {[%clk
0:00:03.6]} 43. Kg3 {[%clk 0:00:34.2]} 43... Qf7 {[%clk 0:00:02.1]} 44. Qf5
{[%clk 0:00:32.5]} 44... Kg7 {[%clk 0:00:03.4]} 45. Qxf7+ {[%clk 0:00:33.4]}
45... Kxf7 {[%clk 0:00:05.3]} 46. f4 {[%clk 0:00:34.9]} 46... gxf4+ {[%clk
0:00:07.1]} 47. Kxf4 {[%clk 0:00:36.1]} 47... Kf6 {[%clk 0:00:09]} 48. Kg3
{[%clk 0:00:36.8]} 48... Kg5 {[%clk 0:00:09.5]} 49. Kh3 {[%clk 0:00:37.8]} 49...
Kf4 {[%clk 0:00:07.1]} 50. d6 {[%clk 0:00:38.1]} 1-0

[Event "*** Titled Tuesday Blitz"]
[Site "Chess.com"]
[Date "2020.01.07"]
[Round "6"]
[White "dragos420"]
[Black "IMRosen"]
[Result "0-1"]
[WhiteElo "2430"]
[BlackElo "2577"]
[TimeControl "180+2"]
[EndTime "14:25:10 PST"]
[Termination "IMRosen won by resignation"]

1. e4 {[%clk 0:03:01.9]} 1... e5 {[%clk 0:02:48.6]} 2. Nf3 {[%clk 0:03:02.1]}
2... Nf6 {[%clk 0:02:49.8]} 3. Nxe5 {[%clk 0:03:01.2]} 3... Nc6 {[%clk
0:02:51.1]} 4. Nxc6 {[%clk 0:03:00.1]} 4... dxc6 {[%clk 0:02:53]} 5. Nc3 {[%clk
0:03:01.4]} 5... Bc5 {[%clk 0:02:53.6]} 6. Bd3 {[%clk 0:02:51.9]} 6... Ng4
{[%clk 0:02:44.6]} 7. Qf3 {[%clk 0:02:16.3]} 7... Bxf2+ {[%clk 0:02:17]} 8. Kd1
{[%clk 0:01:35.7]} 8... Bc5 {[%clk 0:01:56.8]} 9. Rf1 {[%clk 0:01:12.5]} 9...
Ne5 {[%clk 0:01:50.6]} 10. Qg3 {[%clk 0:01:13.6]} 10... Ng6 {[%clk 0:00:35.2]}
11. Bc4 {[%clk 0:01:01]} 11... O-O {[%clk 0:00:29.9]} 12. d3 {[%clk 0:01:02.2]}
12... Be6 {[%clk 0:00:27.3]} 13. Bxe6 {[%clk 0:00:53.4]} 13... fxe6 {[%clk
0:00:29.2]} 14. Rxf8+ {[%clk 0:00:54.5]} 14... Qxf8 {[%clk 0:00:28.9]} 15. Ke2
{[%clk 0:00:53.3]} 15... e5 {[%clk 0:00:18.7]} 16. Bd2 {[%clk 0:00:48.9]} 16...
Nf4+ {[%clk 0:00:15.9]} 17. Bxf4 {[%clk 0:00:49]} 17... Qxf4 {[%clk 0:00:17.4]}
18. Qxf4 {[%clk 0:00:49.2]} 18... exf4 {[%clk 0:00:19.3]} 19. Kf3 {[%clk
0:00:50.2]} 19... Rf8 {[%clk 0:00:16.2]} 20. Ne2 {[%clk 0:00:50.9]} 20... g5
{[%clk 0:00:15.2]} 21. d4 {[%clk 0:00:47.8]} 21... Be7 {[%clk 0:00:15.1]} 22. h3
{[%clk 0:00:46.3]} 22... Kg7 {[%clk 0:00:15.8]} 23. Rd1 {[%clk 0:00:43.6]} 23...
Rd8 {[%clk 0:00:13.1]} 24. e5 {[%clk 0:00:40.3]} 24... Kg6 {[%clk 0:00:13.8]}
25. Ke4 {[%clk 0:00:41.6]} 25... h6 {[%clk 0:00:09.3]} 26. c4 {[%clk 0:00:41.3]}
26... Bf8 {[%clk 0:00:10.2]} 27. d5 {[%clk 0:00:39.7]} 27... Bg7 {[%clk
0:00:08.6]} 28. b3 {[%clk 0:00:36.5]} 28... Re8 {[%clk 0:00:07.1]} 29. e6 {[%clk
0:00:37.8]} 29... cxd5+ {[%clk 0:00:06.3]} 30. cxd5 {[%clk 0:00:39.7]} 30... c6
{[%clk 0:00:07.6]} 31. Rc1 {[%clk 0:00:32.3]} 31... cxd5+ {[%clk 0:00:07]} 32.
Kxd5 {[%clk 0:00:34.2]} 32... Rd8+ {[%clk 0:00:08.7]} 33. Ke4 {[%clk 0:00:25.2]}
33... Rd6 {[%clk 0:00:09.9]} 34. Kf3 {[%clk 0:00:24.1]} 34... Rxe6 {[%clk
0:00:10.6]} 35. Rc4 {[%clk 0:00:23.5]} 35... b5 {[%clk 0:00:09.8]} 36. Rc5
{[%clk 0:00:21.7]} 36... Re3+ {[%clk 0:00:06.8]} 37. Kf2 {[%clk 0:00:22]} 37...
Re5 {[%clk 0:00:06.3]} 38. Rc6+ {[%clk 0:00:19.2]} 38... Kf5 {[%clk 0:00:06.5]}
39. Nd4+ {[%clk 0:00:17.9]} 39... Ke4 {[%clk 0:00:07.3]} 40. Nf3 {[%clk
0:00:19]} 40... Rd5 {[%clk 0:00:05]} 41. Re6+ {[%clk 0:00:19.3]} 41... Kf5
{[%clk 0:00:04.8]} 42. Re7 {[%clk 0:00:19.1]} 42... Bf8 {[%clk 0:00:05.1]} 43.
Re2 {[%clk 0:00:16.7]} 43... Bc5+ {[%clk 0:00:05.7]} 44. Ke1 {[%clk 0:00:15.8]}
44... h5 {[%clk 0:00:04.9]} 45. Rc2 {[%clk 0:00:14.6]} 45... g4 {[%clk
0:00:06.1]} 46. hxg4+ {[%clk 0:00:16.5]} 46... hxg4 {[%clk 0:00:07.7]} 47. Nd2
{[%clk 0:00:14.5]} 47... Bb4 {[%clk 0:00:08.3]} 48. Ke2 {[%clk 0:00:15]} 48...
Rxd2+ {[%clk 0:00:09.3]} 49. Rxd2 {[%clk 0:00:16.5]} 49... Bxd2 {[%clk
0:00:11.2]} 50. Kxd2 {[%clk 0:00:18.4]} 50... Ke4 {[%clk 0:00:12.9]} 51. Ke2
{[%clk 0:00:19.7]} 51... f3+ {[%clk 0:00:13.3]} 52. gxf3+ {[%clk 0:00:21.6]}
52... gxf3+ {[%clk 0:00:15.2]} 53. Kf2 {[%clk 0:00:23.5]} 53... Kf4 {[%clk
0:00:16.8]} 54. a3 {[%clk 0:00:25.4]} 54... a5 {[%clk 0:00:17.8]} 55. a4 {[%clk
0:00:25.5]} 55... b4 {[%clk 0:00:18.6]} 56. Kf1 {[%clk 0:00:26.9]} 56... Ke3
{[%clk 0:00:20.5]} 57. Ke1 {[%clk 0:00:28.5]} 57... Kd3 {[%clk 0:00:22.4]} 58.
Kf2 {[%clk 0:00:30.4]} 58... Kc3 {[%clk 0:00:24.3]} 59. Kxf3 {[%clk 0:00:32.3]}
59... Kxb3 {[%clk 0:00:26.2]} 60. Ke3 {[%clk 0:00:34.2]} 60... Kxa4 {[%clk
0:00:28.1]} 61. Kd3 {[%clk 0:00:36.1]} 61... Ka3 {[%clk 0:00:30]} 62. Kc2 {[%clk
0:00:37.4]} 62... Ka2 {[%clk 0:00:31.4]} 63. Kd3 {[%clk 0:00:38.5]} 63... b3
{[%clk 0:00:32.7]} 64. Kc4 {[%clk 0:00:40.4]} 64... b2 {[%clk 0:00:34.6]} 65.
Kb5 {[%clk 0:00:42.3]} 65... b1=Q+ {[%clk 0:00:36.2]} 66. Ka4 {[%clk 0:00:44.2]}
66... Qb3+ {[%clk 0:00:37.1]} 67. Kxa5 {[%clk 0:00:44.8]} 67... Kb2 {[%clk
0:00:39]} 68. Ka6 {[%clk 0:00:46.7]} 68... Kc3 {[%clk 0:00:40.9]} 69. Ka7 {[%clk
0:00:48.6]} 69... Kc4 {[%clk 0:00:42.8]} 70. Ka8 {[%clk 0:00:50.5]} 70... Kc5
{[%clk 0:00:44.7]} 0-1

[Event "*** Titled Tuesday Blitz"]
[Site "Chess.com"]
[Date "2020.01.07"]
[Round "6"]
[White "BilodeauA"]
[Black "gena217"]
[Result "1-0"]
[WhiteElo "2828"]
[BlackElo "2944"]
[TimeControl "180+2"]
[EndTime "14:25:12 PST"]
[Termination "BilodeauA won by resignation"]

1. e4 {[%clk 0:03:00.2]} 1... e5 {[%clk 0:02:59.6]} 2. Nf3 {[%clk 0:03:01.3]}
2... Nc6 {[%clk 0:03:00.8]} 3. Bc4 {[%clk 0:03:02.6]} 3... Bc5 {[%clk
0:03:00.4]} 4. O-O {[%clk 0:03:00.9]} 4... Nf6 {[%clk 0:03:01.2]} 5. d3 {[%clk
0:03:02.3]} 5... O-O {[%clk 0:03:00.1]} 6. h3 {[%clk 0:03:02]} 6... d5 {[%clk
0:02:44]} 7. exd5 {[%clk 0:03:03.1]} 7... Nxd5 {[%clk 0:02:45.6]} 8. c3 {[%clk
0:02:55.1]} 8... Nb6 {[%clk 0:02:41.9]} 9. Bb5 {[%clk 0:02:44.1]} 9... Qd5
{[%clk 0:02:40.7]} 10. a4 {[%clk 0:02:27.3]} 10... a6 {[%clk 0:02:25.2]} 11.
Bxc6 {[%clk 0:02:27.2]} 11... bxc6 {[%clk 0:02:26.3]} 12. a5 {[%clk 0:02:23.3]}
12... Nd7 {[%clk 0:02:27]} 13. Qe2 {[%clk 0:02:18.2]} 13... Rb8 {[%clk
0:02:14.8]} 14. Nbd2 {[%clk 0:02:15.2]} 14... Bd6 {[%clk 0:02:11.9]} 15. Nc4
{[%clk 0:02:11.4]} 15... c5 {[%clk 0:02:09.9]} 16. Qe4 {[%clk 0:01:51]} 16...
Qe6 {[%clk 0:02:00.7]} 17. Ng5 {[%clk 0:01:47.2]} 17... Qg6 {[%clk 0:02:01.2]}
18. Qxg6 {[%clk 0:01:44.5]} 18... hxg6 {[%clk 0:02:02.4]} 19. Ne4 {[%clk
0:01:41.3]} 19... Be7 {[%clk 0:02:01]} 20. Be3 {[%clk 0:01:39.9]} 20... Bb7
{[%clk 0:01:57.2]} 21. f3 {[%clk 0:01:41.3]} 21... Rfd8 {[%clk 0:01:55.5]} 22.
Rfd1 {[%clk 0:01:40.5]} 22... Bc6 {[%clk 0:01:41.4]} 23. Kf2 {[%clk 0:01:31.5]}
23... f6 {[%clk 0:01:41.8]} 24. Ke2 {[%clk 0:01:31.4]} 24... Kf7 {[%clk
0:01:43]} 25. h4 {[%clk 0:01:20.7]} 25... Rb5 {[%clk 0:01:41.3]} 26. Rh1 {[%clk
0:01:19.5]} 26... Rh8 {[%clk 0:01:35.9]} 27. Rad1 {[%clk 0:01:19.2]} 27... Nf8
{[%clk 0:01:32.1]} 28. Rh2 {[%clk 0:00:53.2]} 28... Ne6 {[%clk 0:01:32.2]} 29.
Rdh1 {[%clk 0:00:54.5]} 29... Bd5 {[%clk 0:01:33]} 30. Ned2 {[%clk 0:00:55.4]}
30... Rhb8 {[%clk 0:01:11.4]} 31. h5 {[%clk 0:00:51.8]} 31... gxh5 {[%clk
0:01:12.7]} 32. Rxh5 {[%clk 0:00:53.6]} 32... Bxc4 {[%clk 0:01:07.8]} 33. Nxc4
{[%clk 0:00:54.2]} 33... Rxb2+ {[%clk 0:01:09.3]} 34. Nxb2 {[%clk 0:00:54.5]}
34... Rxb2+ {[%clk 0:01:11.2]} 35. Kd1 {[%clk 0:00:48.8]} 35... Rxg2 {[%clk
0:01:05.2]} 36. R5h2 {[%clk 0:00:48.9]} 36... Rg3 {[%clk 0:01:01.8]} 37. Ke2
{[%clk 0:00:45.5]} 37... c6 {[%clk 0:00:32.7]} 38. Kf2 {[%clk 0:00:45.5]} 38...
Rg6 {[%clk 0:00:33.3]} 39. Rg2 {[%clk 0:00:45.8]} 39... Bd8 {[%clk 0:00:34.4]}
40. Rxg6 {[%clk 0:00:46]} 40... Kxg6 {[%clk 0:00:36.3]} 41. Ra1 {[%clk
0:00:46.1]} 41... Kf7 {[%clk 0:00:35.5]} 42. Ra4 {[%clk 0:00:47.2]} 42... Ke7
{[%clk 0:00:36.5]} 43. Ke2 {[%clk 0:00:45]} 43... Kd6 {[%clk 0:00:37.7]} 44. Ra1
{[%clk 0:00:45.5]} 44... f5 {[%clk 0:00:36.3]} 45. Bd2 {[%clk 0:00:43.3]} 45...
c4 {[%clk 0:00:35.3]} 46. dxc4 {[%clk 0:00:42.4]} 46... Kc5 {[%clk 0:00:36.7]}
47. Kd3 {[%clk 0:00:42.1]} 47... Bc7 {[%clk 0:00:34.3]} 48. Be3+ {[%clk
0:00:42.7]} 48... Kd6 {[%clk 0:00:35.6]} 49. Bb6 {[%clk 0:00:36.1]} 49... Nc5+
{[%clk 0:00:24.7]} 50. Kc2 {[%clk 0:00:27.5]} 50... Bxb6 {[%clk 0:00:22]} 51.
axb6 {[%clk 0:00:29.4]} 51... Kd7 {[%clk 0:00:21.2]} 52. Rg1 {[%clk 0:00:23.3]}
52... Kc8 {[%clk 0:00:19.8]} 53. Rxg7 {[%clk 0:00:23.9]} 53... e4 {[%clk
0:00:20.8]} 54. Rc7+ {[%clk 0:00:23.2]} 54... Kb8 {[%clk 0:00:22.1]} 55. Rxc6
{[%clk 0:00:24.1]} 55... Nd7 {[%clk 0:00:14.2]} 56. f4 {[%clk 0:00:24.5]} 1-0

[Event "*** Titled Tuesday Blitz"]
[Site "Chess.com"]
[Date "2020.01.07"]
[Round "6"]
[White "crazy_machine"]
[Black "Gordima"]
[Result "0-1"]
[WhiteElo "2647"]
[BlackElo "2803"]
[TimeControl "180+2"]
[EndTime "14:25:15 PST"]
[Termination "Gordima won on time"]

1. e4 {[%clk 0:02:58.2]} 1... c5 {[%clk 0:03:01]} 2. Nf3 {[%clk 0:02:59.1]} 2...
e6 {[%clk 0:03:02.3]} 3. d4 {[%clk 0:03:00.5]} 3... cxd4 {[%clk 0:03:04.2]} 4.
Nxd4 {[%clk 0:03:01.2]} 4... a6 {[%clk 0:03:06.1]} 5. Nc3 {[%clk 0:03:01.5]}
5... Qc7 {[%clk 0:03:06.1]} 6. Be2 {[%clk 0:03:02.9]} 6... b5 {[%clk 0:03:05.9]}
7. O-O {[%clk 0:03:03.8]} 7... Bb7 {[%clk 0:03:07.2]} 8. Re1 {[%clk 0:02:45.9]}
8... Be7 {[%clk 0:03:04.6]} 9. Bd3 {[%clk 0:02:40.2]} 9... d6 {[%clk 0:03:01.4]}
10. Qg4 {[%clk 0:02:40.3]} 10... g6 {[%clk 0:02:55]} 11. Qg3 {[%clk 0:02:30.3]}
11... Nd7 {[%clk 0:02:52.9]} 12. Bg5 {[%clk 0:02:08.6]} 12... Bxg5 {[%clk
0:02:43.5]} 13. Qxg5 {[%clk 0:02:10.5]} 13... e5 {[%clk 0:02:43.6]} 14. Nf5
{[%clk 0:01:56.7]} 14... Ngf6 {[%clk 0:02:36.6]} 15. Bxb5 {[%clk 0:01:48.5]}
15... gxf5 {[%clk 0:01:52.6]} 16. Qxf6 {[%clk 0:01:47.6]} 16... Rg8 {[%clk
0:01:53.9]} 17. Bxd7+ {[%clk 0:01:26.5]} 17... Qxd7 {[%clk 0:01:54.5]} 18. Rad1
{[%clk 0:01:28]} 18... Rg6 {[%clk 0:01:49.8]} 19. Qh4 {[%clk 0:01:05]} 19... Qe7
{[%clk 0:01:36.9]} 20. Qxh7 {[%clk 0:00:54.5]} 20... fxe4 {[%clk 0:01:32.3]} 21.
Nxe4 {[%clk 0:00:50.1]} 21... O-O-O {[%clk 0:01:32.8]} 22. Qh3+ {[%clk
0:00:46.9]} 22... Kb8 {[%clk 0:01:31]} 23. Ng3 {[%clk 0:00:48.3]} 23... Bc8
{[%clk 0:01:26.6]} 24. Qh5 {[%clk 0:00:47.9]} 24... Bg4 {[%clk 0:01:25.8]} 25.
Qh7 {[%clk 0:00:48.4]} 25... Bxd1 {[%clk 0:01:03.5]} 26. Rxd1 {[%clk 0:00:50.3]}
26... Qe6 {[%clk 0:00:55.8]} 27. Qh5 {[%clk 0:00:50.1]} 27... Qg4 {[%clk
0:00:55.1]} 28. Qxg4 {[%clk 0:00:43.4]} 28... Rxg4 {[%clk 0:00:57]} 29. Nf5
{[%clk 0:00:45.1]} 29... Kc7 {[%clk 0:00:50.9]} 30. Ne3 {[%clk 0:00:43.6]} 30...
Ra4 {[%clk 0:00:50.3]} 31. a3 {[%clk 0:00:33.6]} 31... Rb8 {[%clk 0:00:51]} 32.
Nd5+ {[%clk 0:00:19.5]} 32... Kd7 {[%clk 0:00:52.1]} 33. Nb4 {[%clk 0:00:14.2]}
33... Ke6 {[%clk 0:00:42.9]} 34. f3 {[%clk 0:00:05.6]} 34... a5 {[%clk
0:00:40.2]} 35. Nd3 {[%clk 0:00:06.8]} 35... Rc4 {[%clk 0:00:38.1]} 36. Rd2
{[%clk 0:00:06.3]} 36... f5 {[%clk 0:00:38.2]} 37. Kf2 {[%clk 0:00:06.9]} 37...
Rbc8 {[%clk 0:00:32.8]} 38. c3 {[%clk 0:00:07.8]} 38... f4 {[%clk 0:00:32.1]}
39. Ke2 {[%clk 0:00:08.3]} 39... d5 {[%clk 0:00:31.7]} 40. Kf2 {[%clk 0:00:08]}
40... Kf5 {[%clk 0:00:29.2]} 41. Nc1 {[%clk 0:00:06.5]} 41... d4 {[%clk
0:00:29]} 42. Ne2 {[%clk 0:00:06.6]} 42... Rd8 {[%clk 0:00:22.2]} 43. g3 {[%clk
0:00:06.4]} 43... d3 {[%clk 0:00:19.6]} 44. Nc1 {[%clk 0:00:07.3]} 44... e4
{[%clk 0:00:20.1]} 45. gxf4 {[%clk 0:00:03.1]} 45... Kxf4 {[%clk 0:00:21.3]} 46.
Ne2+ {[%clk 0:00:04.4]} 46... Ke5 {[%clk 0:00:16.9]} 47. Nd4 {[%clk 0:00:04.3]}
47... Rdxd4 {[%clk 0:00:13.2]} 48. cxd4+ {[%clk 0:00:06.2]} 48... Kxd4 {[%clk
0:00:15.1]} 49. fxe4 {[%clk 0:00:07.8]} 49... Rc2 {[%clk 0:00:16.5]} 50. Ke1
{[%clk 0:00:02.9]} 50... Ke3 {[%clk 0:00:16.2]} 51. Rd1 {[%clk 0:00:02.2]} 51...
Rxh2 {[%clk 0:00:17.2]} 0-1